fUST/lending_fUST_20240429
["ID","MTS","AMOUNT","RATE_DAILY","PERIOD"]
[324861459,1714379438474,-201.07386942,0.00013698,2]
[324861461,1714379438483,-500.0,0.00013698,2]
[324861463,1714379438493,-485.6655,0.00013698,2]
[324861465,1714379438501,-500.0,0.00013698,2]
[324861467,1714379438510,-96.1081786,0.00013972,2]
[324861469,1714379438519,-500.0,0.00013972,2]
[324861471,1714379438528,-500.0,0.00013972,2]
[324861473,1714379438537,-500.0,0.00013972,2]
[324861475,1714379438546,-507.15817522,0.00013972,2]
[324861477,1714379438555,-500.0,0.00013972,2]
[324861479,1714379438564,-500.0,0.00013972,2]
[324861481,1714379438573,-500.0,0.00013972,2]
[324861483,1714379438583,-537.4,0.00013972,2]
[324861485,1714379438592,-35.89427676,0.00013972,2]
[324861487,1714379438603,-488.40774698,0.00013972,2]
[324861489,1714379438612,-446.59225302,0.00013972,2]
[324861491,1714379438623,-63.10774698,0.00013972,2]
[324861493,1714379438632,-500.0,0.00013972,2]
[324861495,1714379438641,-500.0,0.00013972,2]
[324861497,1714379438650,-636.99,0.00013972,2]
[324861499,1714379438659,-89.90286928,0.00013972,2]
[324861963,1714379443150,-203.43785196,0.00013698,2]
[324861966,1714379443159,-410.09713072,0.00013972,2]
[324861970,1714379443169,-500.0,0.00013972,2]
[324861972,1714379443179,-500.0,0.00013972,2]
[324861976,1714379443190,-500.0,0.00013972,2]
[324861980,1714379443200,-205.069677,0.00013972,2]
[324861982,1714379443210,-162.14074238,0.00013972,2]
[324862120,1714379444366,-337.85925762,0.00013972,2]
[324862121,1714379444375,-500.0,0.00013972,2]
[324862122,1714379444385,-500.0,0.00013972,2]
[324862123,1714379444394,-500.0,0.00013972,2]
[324862124,1714379444404,-277.85,0.00013972,2]
[324862125,1714379444414,-500.0,0.00013972,2]
[324862126,1714379444423,-500.0,0.00013972,2]
[324862127,1714379444432,-500.0,0.00013972,2]
[324862128,1714379444442,-500.0,0.00013972,2]
[324862129,1714379444451,-500.0,0.00013972,2]
[324862130,1714379444460,-928.56039633,0.00014,2]
[324862131,1714379444469,-163.89776702,0.00014131,2]
[324862132,1714379444479,-500.0,0.00014246,2]
[324862133,1714379444488,-241.73935754,0.00014246,2]
[324862134,1714379444497,-312.7,0.00014246,2]
[324862135,1714379444507,-426.38,0.00014246,2]
[324862136,1714379444516,-153.25,0.00014246,2]
[324862138,1714379444526,-601.15,0.00014246,2]
[324862139,1714379444535,-310.85,0.00014246,2]
[324862141,1714379444544,-258.7,0.00014246,2]
[324862144,1714379444554,-500.0,0.00014246,2]
[324862146,1714379444563,-478.95,0.00014246,2]
[324862148,1714379444572,-500.0,0.00014246,2]
[324862149,1714379444582,-275.42,0.00014246,2]
[324862151,1714379444591,-435.85,0.00014246,2]
[324862153,1714379444600,-500.0,0.00014246,2]
[324862155,1714379444610,-500.0,0.00014246,2]
[324862157,1714379444620,-500.0,0.00014246,2]
[324862159,1714379444629,-304.32,0.00014246,2]
[324862162,1714379444639,-500.0,0.00014246,2]
[324862164,1714379444648,-500.0,0.00014246,2]
[324862165,1714379444658,-377.54108775,0.000145,2]
[324862167,1714379444666,-500.0,0.00014519,2]
[324862169,1714379444675,-514.92,0.00014519,2]
[324862171,1714379444684,-500.0,0.00014519,2]
[324862173,1714379444695,-500.0,0.00014519,2]
[324862175,1714379444705,-500.0,0.00014519,2]
[324862177,1714379444713,-500.0,0.00014519,2]
[324862179,1714379444722,-500.0,0.00014519,2]
[324862181,1714379444732,-500.0,0.00014519,2]
[324862183,1714379444741,-289.21,0.0001452,2]
[324862185,1714379444750,-500.0,0.0001452,2]
[324862187,1714379444759,-500.0,0.0001452,2]
[324862189,1714379444769,-169.57,0.0001452,2]
[324862191,1714379444779,-500.0,0.0001452,2]
[324862193,1714379444787,-500.0,0.0001452,2]
[324862195,1714379444797,-500.0,0.0001452,2]
[324862197,1714379444806,-163.89776702,0.00014665,2]
[324862199,1714379444814,-300.0,0.00014728,2]
[324862201,1714379444823,-500.0,0.00014793,2]
[324862203,1714379444832,-342.71,0.00014793,2]
[324862205,1714379444842,-500.0,0.00014793,2]
[324862207,1714379444851,-624.52,0.00014793,2]
[324862209,1714379444860,-221.98610127,0.00014793,2]
[324862767,1714380437103,-300.0,0.00012712,2]
[324862768,1714380437123,-300.0,0.00012712,2]
[324862769,1714380437143,-8948.35020712,0.00012713,2]
[324862770,1714380450115,-10817.22355014,0.00012713,2]
[324862772,1714380556092,-5134.42624274,0.00012713,2]
[324862773,1714380556111,-154.82968734,0.00013011,2]
[324862774,1714380572107,-445.01764102,0.00013413,2]
[324862775,1714380572127,-163.89776702,0.00013597,2]
[324862776,1714380572148,-199.10622179,0.00013598,2]
[324862777,1714380572166,-520.1167171,0.00013696,2]
[324862778,1714380572185,-300.0,0.00013697,2]
[324862779,1714380572205,-300.0,0.00013697,2]
[324862780,1714380572226,-217.77486337,0.00013698,2]
[324862781,1714380572245,-500.0,0.00013698,2]
[324862782,1714380572264,-500.0,0.00013698,2]
[324862783,1714380572283,-500.0,0.00013698,2]
[324862784,1714380572306,-500.0,0.00013698,2]
[324862785,1714380572325,-500.0,0.00013698,2]
[324862786,1714380572345,-500.0,0.00013698,2]
[324862787,1714380572365,-500.0,0.00013698,2]
[324862788,1714380572385,-500.0,0.00013698,2]
[324862789,1714380572408,-368.22389085,0.00013698,2]
[324862809,1714380632887,-154.78330338,0.00013696,2]
[324862810,1714380632896,-154.78330338,0.00013697,2]
[324862811,1714380632906,-131.77610915,0.00013698,2]
[324862812,1714380632915,-500.0,0.00013698,2]
[324862813,1714380632924,-500.0,0.00013698,2]
[324862814,1714380632934,-500.0,0.00013698,2]
[324862815,1714380632943,-500.0,0.00013698,2]
[324862816,1714380632954,-500.0,0.00013698,2]
[324862817,1714380632964,-500.0,0.00013698,2]
[324862818,1714380632973,-500.0,0.00013698,2]
[324862819,1714380632983,-500.0,0.00013698,2]
[324862820,1714380632993,-500.0,0.00013698,2]
[324862821,1714380633001,-500.0,0.00013698,2]
[324862822,1714380633009,-500.0,0.00013698,2]
[324862823,1714380633018,-500.0,0.00013698,2]
[324862824,1714380633027,-500.0,0.00013698,2]
[324862825,1714380633036,-249.83765739,0.00013698,2]
[324862826,1714380633045,-500.0,0.00013698,2]
[324862827,1714380633054,-180.21,0.00013698,2]
[324862828,1714380633063,-500.0,0.00013698,2]
[324862829,1714380633073,-504.82343252,0.00013698,2]
[324862830,1714380633082,-500.0,0.00013698,2]
[324862831,1714380633091,-500.0,0.00013698,2]
[324862832,1714380633101,-500.0,0.00013698,2]
[324862833,1714380633110,-500.0,0.00013698,2]
[324862834,1714380633119,-500.0,0.00013698,2]
[324862835,1714380633128,-500.0,0.00013698,2]
[324862836,1714380633137,-500.0,0.00013698,2]
[324862837,1714380633146,-500.0,0.00013698,2]
[324862838,1714380633156,-500.0,0.00013698,2]
[324862839,1714380633165,-500.0,0.00013698,2]
[324862840,1714380633174,-172.14691937,0.00013698,2]
[324862841,1714380633183,-500.0,0.00013698,2]
[324862842,1714380633192,-332.82,0.00013698,2]
[324862843,1714380633204,-500.0,0.00013698,2]
[324862844,1714380633213,-500.0,0.00013698,2]
[324862845,1714380633222,-500.0,0.00013698,2]
[324862846,1714380633232,-500.0,0.00013698,2]
[324862847,1714380633246,-500.0,0.00013698,2]
[324862848,1714380633255,-500.0,0.00013698,2]
[324862849,1714380633264,-500.0,0.00013698,2]
[324862850,1714380633274,-500.0,0.00013698,2]
[324862851,1714380633283,-500.64,0.00013698,2]
[324862852,1714380633293,-500.0,0.00013698,2]
[324862853,1714380633301,-500.0,0.00013698,2]
[324862854,1714380633310,-500.0,0.00013698,2]
[324862855,1714380633320,-500.0,0.00013698,2]
[324862856,1714380633330,-557.19,0.00013698,2]
[324862857,1714380633338,-500.0,0.00013698,2]
[324862858,1714380633347,-523.85162725,0.00013698,2]
[324862859,1714380633356,-500.0,0.00013698,2]
[324862860,1714380633365,-500.0,0.00013698,2]
[324862861,1714380633374,-400.68158219,0.00013698,2]
[324862862,1714380633383,-500.0,0.00013698,2]
[324862863,1714380633393,-500.0,0.00013698,2]
[324862864,1714380633402,-500.0,0.00013698,2]
[324862865,1714380633412,-500.0,0.00013698,2]
[324862866,1714380633421,-500.0,0.00013698,2]
[324862867,1714380633430,-500.0,0.00013698,2]
[324862868,1714380633439,-500.0,0.00013698,2]
[324862869,1714380633450,-500.0,0.00013698,2]
[324862870,1714380633460,-500.0,0.00013698,2]
[324862871,1714380633469,-307.42551079,0.00013698,2]
[324862872,1714380633478,-500.0,0.00013698,2]
[324862873,1714380633487,-500.0,0.00013698,2]
[324862874,1714380633496,-500.0,0.00013698,2]
[324862875,1714380633506,-580.94,0.00013698,2]
[324862876,1714380633515,-500.0,0.00013698,2]
[324862877,1714380633524,-500.0,0.00013698,2]
[324862878,1714380633533,-500.0,0.00013698,2]
[324862879,1714380633542,-500.0,0.00013698,2]
[324862880,1714380633551,-273.70222515,0.00013698,2]
[324862881,1714380633561,-527.42546665,0.00013698,2]
[324862882,1714380633570,-500.0,0.00013698,2]
[324862883,1714380633579,-500.0,0.00013698,2]
[324862884,1714380633588,-500.0,0.00013698,2]
[324862885,1714380633598,-187.38950934,0.00013698,2]
[324862886,1714380633607,-500.0,0.00013698,2]
[324862887,1714380633616,-500.0,0.00013698,2]
[324862888,1714380633625,-500.0,0.00013698,2]
[324862889,1714380633635,-500.0,0.00013698,2]
[324862890,1714380633643,-500.0,0.00013698,2]
[324862891,1714380633653,-500.0,0.00013698,2]
[324862892,1714380633662,-500.0,0.00013698,2]
[324862893,1714380633671,-500.0,0.00013698,2]
[324862894,1714380633680,-515.38,0.00013698,2]
[324862895,1714380633689,-500.0,0.00013698,2]
[324862896,1714380633703,-500.0,0.00013698,2]
[324862897,1714380633712,-500.0,0.00013698,2]
[324862898,1714380633721,-500.0,0.00013698,2]
[324862899,1714380633730,-212.30907743,0.00013698,2]
[324862900,1714380633739,-183.96,0.00013698,2]
[324862901,1714380633748,-500.0,0.00013698,2]
[324862902,1714380633757,-500.0,0.00013698,2]
[324862903,1714380633766,-500.0,0.00013698,2]
[324862904,1714380633775,-1069.84843622,0.00013698,2]
[324862905,1714380633787,-43.44156378,0.00013698,2]
[324862906,1714380633796,-500.0,0.00013698,2]
[324862907,1714380633805,-500.0,0.00013698,2]
[324862908,1714380633814,-431.53,0.00013698,2]
[324862909,1714380633824,-166.666666,0.00013699,2]
[324862910,1714380633834,-730.61014924,0.000138,2]
[324862911,1714380633843,-500.0,0.00013972,2]
[324862912,1714380633852,-412.21278973,0.00013972,2]
[324862958,1714380638693,-276.95,0.00013698,2]
[324862976,1714380638864,-154.82968734,0.00013698,2]
[324863470,1714380643932,-68.22031266,0.00013698,2]
[324863471,1714380643942,-500.0,0.00013698,2]
[324863472,1714380643951,-204.22488387,0.00013698,2]
[324863702,1714380646648,-295.77511613,0.00013698,2]
[324863704,1714380646657,-87.78721027,0.00013972,2]
[324863706,1714380646666,-166.1,0.00013972,2]
[324863708,1714380646675,-500.0,0.00013972,2]
[324863710,1714380646685,-231.2371236,0.00013972,2]
[324864095,1714381618183,-445.01822462,0.00012828,2]
[324864096,1714381633141,-684.43918928,0.00012828,2]
[324864097,1714381633162,-163.89776702,0.00013598,2]
[324864098,1714381633182,-174.21794404,0.00013598,2]
[324864099,1714381633203,-300.0,0.00013694,2]
[324864100,1714381633224,-7873.55611444,0.00013695,2]
[324864101,1714381633244,-154.95443397,0.00013696,2]
[324864102,1714381633266,-155.35401592,0.00013696,2]
[324864103,1714381633286,-154.78330338,0.00013696,2]
[324864104,1714381633305,-166.51980397,0.00013696,2]
[324864105,1714381633328,-247.69764059,0.00013696,2]
[324864106,1714381633352,-158.79873753,0.00013696,2]
[324864107,1714381633376,-154.84515485,0.00013696,2]
[324864108,1714381633400,-884.2224895,0.00013696,2]
[324864109,1714381633421,-435.51311724,0.00013696,2]
[324864110,1714381633443,-551.91833095,0.00013696,2]
[324864111,1714381633465,-1255.16360998,0.00013696,2]
[324864112,1714381633487,-634.07387194,0.00013696,2]
[324864113,1714381633513,-1311.22668928,0.00013696,2]
[324864114,1714381633536,-271.39928444,0.00013696,2]
[324864115,1714381633560,-1200.92780998,0.00013696,2]
[324864116,1714381633586,-1890.27292417,0.00013696,2]
[324864117,1714381633612,-215.38625227,0.00013696,2]
[324864118,1714381633636,-219.61097658,0.00013696,2]
[324864119,1714381633659,-155.03576215,0.00013696,2]
[324864120,1714381633682,-156.00451118,0.00013696,2]
[324864121,1714381633705,-258.67140407,0.00013696,2]
[324864122,1714381633727,-323.00644432,0.00013696,2]
[324864123,1714381633750,-722.99331126,0.00013696,2]
[324864124,1714381633774,-161.99116159,0.00013696,2]
[324864125,1714381633796,-646.57238522,0.00013696,2]
[324864126,1714381633818,-154.82968734,0.00013696,2]
[324864127,1714381633842,-306.64058106,0.00013696,2]
[324864128,1714381633863,-244.21761044,0.00013696,2]
[324864129,1714381633887,-2011.81960285,0.00013696,2]
[324864130,1714381633910,-155.08589962,0.00013696,2]
[324864131,1714381633933,-156.22497367,0.00013696,2]
[324864132,1714381633957,-648.10267264,0.00013696,2]
[324864133,1714381633980,-156.68280648,0.00013696,2]
[324864134,1714381634003,-474.97592894,0.00013696,2]
[324864135,1714381634027,-445.01764102,0.00013696,2]
[324864136,1714381634051,-1107.29890612,0.00013697,2]
[324864138,1714381646126,-603.34452999,0.00013697,2]
[324864139,1714381646145,-284.14614669,0.00013697,2]
[324864144,1714381755122,-919.41140399,0.00012728,2]
[324864145,1714381755151,7149.6701113,0.00012697,2]
[324864146,1714381771096,-300.0,0.00013695,2]
[324864147,1714381771116,-4849.42672896,0.00013696,2]
[324864148,1714381771136,-9841.24891965,0.00013697,2]
[324864149,1714381771156,-500.0,0.00013698,2]
[324864150,1714381771176,-500.0,0.00013698,2]
[324864151,1714381771196,-500.0,0.00013698,2]
[324864152,1714381771216,-500.0,0.00013698,2]
[324864153,1714381771235,-500.0,0.00013698,2]
[324864154,1714381771255,-295.38719371,0.00013698,2]
[324864155,1714381771274,-500.0,0.00013698,2]
[324864156,1714381771294,-500.0,0.00013698,2]
[324864157,1714381771313,-614.90725597,0.00013698,2]
[324864158,1714381771332,-590.41756866,0.00013698,2]
[324864159,1714381771352,-533.22023707,0.00013698,2]
[324864160,1714381771372,-598.22168437,0.00013698,2]
[324864161,1714381771391,-500.0,0.00013698,2]
[324864162,1714381771411,-500.0,0.00013698,2]
[324864163,1714381771430,-354.93632613,0.00013698,2]
[324864164,1714381771450,-500.0,0.00013698,2]
[324864165,1714381771470,-564.1517759,0.00013698,2]
[324864166,1714381771490,-500.0,0.00013698,2]
[324864167,1714381771510,-500.0,0.00013698,2]
[324864168,1714381771532,-500.0,0.00013698,2]
[324864169,1714381771555,-500.0,0.00013698,2]
[324864170,1714381771575,-500.0,0.00013698,2]
[324864171,1714381771595,-531.22243147,0.00013698,2]
[324864172,1714381771614,-500.0,0.00013698,2]
[324864173,1714381771637,-500.0,0.00013698,2]
[324864174,1714381771658,-510.35106455,0.00013698,2]
[324864175,1714381771678,-621.62077351,0.00013698,2]
[324864176,1714381771698,-500.0,0.00013698,2]
[324864177,1714381771718,-500.0,0.00013698,2]
[324864178,1714381771738,-289.5570205,0.00013698,2]
[324864179,1714381771758,-500.0,0.00013698,2]
[324864180,1714381771777,-500.0,0.00013698,2]
[324864181,1714381771796,-546.88376238,0.00013698,2]
[324864182,1714381771816,-500.0,0.00013698,2]
[324864183,1714381771837,-500.0,0.00013698,2]
[324864184,1714381771856,-500.0,0.00013698,2]
[324864185,1714381771876,-500.0,0.00013698,2]
[324864186,1714381771896,-500.0,0.00013698,2]
[324864187,1714381771916,-500.0,0.00013698,2]
[324864188,1714381771936,-587.93235401,0.00013698,2]
[324864189,1714381771957,-634.72,0.00013698,2]
[324864190,1714381771977,-625.839322,0.00013699,2]
[324864191,1714381771997,-166.666666,0.00013699,2]
[324864192,1714381772017,-154.78330338,0.000137,2]
[324864193,1714381772037,-730.61014924,0.000138,2]
[324864194,1714381772056,-500.0,0.00013971,2]
[324864195,1714381772076,-500.0,0.00013971,2]
[324864196,1714381772096,-476.96503194,0.00013971,2]
[324864197,1714381772115,-500.0,0.00013971,2]
[324864198,1714381772136,-500.0,0.00013971,2]
[324864199,1714381772156,-500.0,0.00013971,2]
[324864200,1714381772176,-500.0,0.00013971,2]
[324864201,1714381772197,-500.0,0.00013971,2]
[324864202,1714381772216,-513.37,0.00013971,2]
[324864203,1714381772236,-500.0,0.00013971,2]
[324864204,1714381772255,-500.0,0.00013971,2]
[324864205,1714381772275,-500.0,0.00013972,2]
[324864206,1714381772293,-429.43,0.00013972,2]
[324864207,1714381772313,-500.0,0.00013972,2]
[324864208,1714381772334,-378.91160299,0.00013972,2]
[324864209,1714381772357,-500.0,0.00013972,2]
[324864210,1714381772376,-500.0,0.00013972,2]
[324864211,1714381772396,-500.0,0.00013972,2]
[324864212,1714381772416,-500.0,0.00013972,2]
[324864213,1714381772436,-500.0,0.00013972,2]
[324864214,1714381772456,-500.0,0.00013972,2]
[324864215,1714381772476,-500.0,0.00013972,2]
[324864216,1714381772495,-500.0,0.00013972,2]
[324864217,1714381772516,-168.59633581,0.00013972,2]
[324864218,1714381772535,-180.60362265,0.00013972,2]
[324864219,1714381772558,-1072.99931694,0.00013972,2]
[324864220,1714381772578,-500.0,0.00013998,2]
[324864221,1714381772600,-500.0,0.00013998,2]
[324864222,1714381772620,-1150.24,0.00013998,2]
[324864223,1714381772644,-500.0,0.00013998,2]
[324864224,1714381772664,-6500.0,0.00013998,2]
[324864225,1714381772684,-500.0,0.00013998,2]
[324864226,1714381772704,-500.0,0.00013998,2]
[324864227,1714381772725,-500.0,0.00013998,2]
[324864228,1714381772746,-185.13683929,0.00013998,2]
[324864229,1714381772766,-500.0,0.00013998,2]
[324864230,1714381772786,-500.0,0.00013998,2]
[324864231,1714381772806,-500.0,0.00013999,2]
[324864232,1714381772825,-500.0,0.00013999,2]
[324864233,1714381772845,-500.0,0.00013999,2]
[324864234,1714381772865,-500.0,0.00013999,2]
[324864235,1714381772886,-500.0,0.00013999,2]
[324864236,1714381772906,-500.0,0.00013999,2]
[324864237,1714381772926,-500.0,0.00013999,2]
[324864238,1714381772946,-500.0,0.00013999,2]
[324864239,1714381772966,-230.3143349,0.00013999,2]
[324864240,1714381772986,-500.0,0.00013999,2]
[324864241,1714381773005,-500.0,0.00013999,2]
[324864242,1714381773025,-500.0,0.00013999,2]
[324864243,1714381773050,-500.0,0.00013999,2]
[324864244,1714381773071,-500.0,0.00013999,2]
[324864245,1714381773092,-500.0,0.00013999,2]
[324864246,1714381773111,-556.88503555,0.00013999,2]
[324864247,1714381773131,-500.0,0.00013999,2]
[324864248,1714381773151,-500.0,0.00013999,2]
[324864249,1714381773171,-500.0,0.00013999,2]
[324864250,1714381773190,-199.33,0.00013999,2]
[324864251,1714381773209,-500.0,0.00013999,2]
[324864252,1714381773228,-192.08826231,0.00013999,2]
[324864253,1714381773247,-426.06591662,0.00013999,2]
[324864254,1714381773267,-500.0,0.00013999,2]
[324864255,1714381773286,-500.0,0.00013999,2]
[324864256,1714381773306,-547.61,0.00013999,2]
[324864257,1714381773326,-279.67,0.00013999,2]
[324864258,1714381773346,-500.0,0.00013999,2]
[324864259,1714381773367,-500.0,0.00013999,2]
[324864260,1714381773386,-500.0,0.00013999,2]
[324864261,1714381773406,-500.0,0.00013999,2]
[324864262,1714381773426,-500.0,0.00013999,2]
[324864263,1714381773448,-500.0,0.00013999,2]
[324864264,1714381773468,-500.0,0.00013999,2]
[324864265,1714381773489,-500.0,0.00013999,2]
[324864266,1714381773509,-500.0,0.00013999,2]
[324864267,1714381773529,-500.0,0.00013999,2]
[324864268,1714381773553,-529.61962128,0.00013999,2]
[324864269,1714381773573,-500.0,0.00013999,2]
[324864270,1714381773594,-500.0,0.00013999,2]
[324864271,1714381773614,-240.11,0.00013999,2]
[324864272,1714381773738,-500.0,0.00013999,2]
[324864273,1714381773758,-500.0,0.00013999,2]
[324864274,1714381773778,-195.30808301,0.00013999,2]
[324864275,1714381773797,-500.0,0.00013999,2]
[324864276,1714381773818,-500.0,0.00013999,2]
[324864277,1714381773838,-500.0,0.00013999,2]
[324864278,1714381773858,-500.0,0.00013999,2]
[324864279,1714381773878,-500.0,0.00013999,2]
[324864280,1714381773898,-504.89,0.00013999,2]
[324864281,1714381773918,-500.0,0.00013999,2]
[324864282,1714381773939,-500.0,0.00013999,2]
[324864283,1714381773959,-500.0,0.00013999,2]
[324864284,1714381773978,-500.0,0.00013999,2]
[324864285,1714381773997,-352.18046222,0.00013999,2]
[324864286,1714381774016,-500.0,0.00013999,2]
[324864287,1714381774036,-500.0,0.00013999,2]
[324864288,1714381774056,-500.0,0.00013999,2]
[324864289,1714381774079,-500.0,0.00013999,2]
[324864290,1714381774099,-500.0,0.00013999,2]
[324864291,1714381774118,-500.0,0.00013999,2]
[324864292,1714381774137,-557.95180536,0.00013999,2]
[324864293,1714381774158,-500.0,0.00013999,2]
[324864294,1714381774177,-500.0,0.00013999,2]
[324864295,1714381774202,-500.0,0.00013999,2]
[324864296,1714381774221,-500.0,0.00013999,2]
[324864297,1714381774241,-500.0,0.00013999,2]
[324864298,1714381774260,-308.74394132,0.00013999,2]
[324864299,1714381774280,-427.23970172,0.00013999,2]
[324864300,1714381774303,-500.0,0.00013999,2]
[324864301,1714381774325,-500.0,0.00013999,2]
[324864302,1714381774345,-500.0,0.00013999,2]
[324864303,1714381774365,-500.0,0.00013999,2]
[324864304,1714381774385,-500.0,0.00013999,2]
[324864305,1714381774405,-522.72,0.00013999,2]
[324864306,1714381774425,-500.0,0.00013999,2]
[324864307,1714381774446,-500.0,0.00013999,2]
[324864308,1714381774465,-609.32,0.00013999,2]
[324864309,1714381774485,-928.56039633,0.00014,2]
[324864310,1714381774505,-628.16,0.00014245,2]
[324864311,1714381774524,-607.55,0.00014245,2]
[324864312,1714381774544,-500.0,0.00014245,2]
[324864313,1714381774566,-500.0,0.00014245,2]
[324864314,1714381774587,-500.0,0.00014245,2]
[324864315,1714381774608,-500.0,0.00014246,2]
[324864316,1714381774628,-500.0,0.00014246,2]
[324864317,1714381774648,-500.0,0.00014246,2]
[324864318,1714381774669,-500.0,0.00014246,2]
[324864319,1714381774691,-500.0,0.00014246,2]
[324864320,1714381774712,-500.0,0.00014272,2]
[324864321,1714381774734,-592.32,0.00014272,2]
[324864322,1714381774755,-1150.24,0.00014272,2]
[324864323,1714381774776,-500.0,0.00014272,2]
[324864324,1714381774797,-500.0,0.00014272,2]
[324864325,1714381774818,-500.0,0.00014272,2]
[324864326,1714381774838,-500.0,0.00014272,2]
[324864327,1714381774858,-500.0,0.00014272,2]
[324864328,1714381774878,-500.0,0.00014273,2]
[324864329,1714381774898,-500.0,0.00014273,2]
[324864330,1714381774917,-500.0,0.00014273,2]
[324864331,1714381774938,-500.0,0.00014273,2]
[324864332,1714381774958,-572.27982896,0.00014273,2]
[324864333,1714381774977,-500.0,0.00014273,2]
[324864334,1714381774997,-511.363832,0.00014273,2]
[324864335,1714381775018,-500.0,0.00014273,2]
[324864336,1714381775038,-500.0,0.00014273,2]
[324864337,1714381775057,-500.0,0.00014273,2]
[324864338,1714381775079,-500.0,0.00014273,2]
[324864339,1714381775100,-500.0,0.00014273,2]
[324864340,1714381775122,-500.0,0.00014273,2]
[324864341,1714381775142,-500.0,0.00014273,2]
[324864342,1714381775167,-500.0,0.00014273,2]
[324864343,1714381775187,-502.56881253,0.00014273,2]
[324864344,1714381775207,-500.0,0.00014273,2]
[324864345,1714381775228,-500.0,0.00014273,2]
[324864346,1714381775250,-500.0,0.00014273,2]
[324864347,1714381775271,-500.0,0.00014273,2]
[324864348,1714381775292,-500.0,0.00014273,2]
[324864349,1714381775315,-500.0,0.00014273,2]
[324864350,1714381775335,-500.0,0.00014273,2]
[324864351,1714381775355,-500.0,0.00014273,2]
[324864352,1714381775379,-500.0,0.00014273,2]
[324864353,1714381775398,-283.71767439,0.00014273,2]
[324864354,1714381775418,-500.0,0.00014273,2]
[324864355,1714381775437,-500.0,0.00014273,2]
[324864356,1714381775458,-500.0,0.00014273,2]
[324864357,1714381775478,-500.0,0.00014273,2]
[324864358,1714381775498,-500.0,0.00014273,2]
[324864359,1714381775518,-500.0,0.00014273,2]
[324864360,1714381775538,-500.0,0.00014273,2]
[324864361,1714381775563,-534.04,0.00014273,2]
[324864362,1714381775584,-500.0,0.00014273,2]
[324864363,1714381775606,-500.0,0.00014273,2]
[324864364,1714381775626,-500.0,0.00014273,2]
[324864365,1714381775647,-500.0,0.00014273,2]
[324864366,1714381775668,-500.0,0.00014273,2]
[324864367,1714381775691,-544.12975332,0.00014273,2]
[324864368,1714381775723,-500.0,0.00014519,2]
[324864369,1714381775751,-500.0,0.00014519,2]
[324864370,1714381775771,-500.0,0.0001452,2]
[324864371,1714381775791,-600.0,0.0001452,2]
[324864372,1714381775818,-363.86,0.0001452,2]
[324864373,1714381775840,-500.0,0.0001452,2]
[324864374,1714381775862,-500.0,0.00014546,2]
[324864375,1714381775883,-1150.24,0.00014546,2]
[324864376,1714381775905,-165.02,0.00014546,2]
[324864377,1714381775925,-500.0,0.00014546,2]
[324864378,1714381775948,-500.0,0.00014546,2]
[324864379,1714381775968,-500.0,0.00014546,2]
[324864380,1714381775989,-500.0,0.00014546,2]
[324864381,1714381776009,-500.0,0.00014547,2]